[Event "44th Chess Olympiad Open 2022"]
[Site "Chennai"]
[Date "2022.07.30"]
[Round "2.83"]
[White "Pillay, Ragul"]
[Black "Al-Burshaid, Ebrahim"]
[Result "0-1"]
[WhiteElo "1341"]
[BlackElo "1702"]
[Annotator "NA RC"]
[PlyCount "74"]
[EventDate "2022.??.??"]
[TimeControl "60"]

1. d4 {[%emt 0:00:11]} Nf6 {[%emt 0:00:04]} 2. c4 {[%emt 0:00:07]} e6 {[%emt 0:
00:00]} 3. Nc3 {[%emt 0:01:07]} Bb4 {[%emt 0:00:10]} 4. Nf3 {[%emt 0:00:39]} b6
{[%emt 0:00:46]} 5. Bf4 {[%emt 0:08:06]} Bb7 {[%emt 0:01:54]} 6. a3 {[%emt 0:
00:00]} Bxc3+ {[%emt 0:00:45]} 7. bxc3 {[%emt 0:00:13]} Ne4 {[%emt 0:01:13]} 8.
Qc2 {[%emt 0:00:37]} O-O {[%emt 0:00:36]} 9. e3 {[%emt 0:01:39]} f5 {[%emt 0:
00:00]} 10. Rd1 {[%emt 0:05:54]} d6 {[%emt 0:02:37]} 11. Bd3 {[%emt 0:06:34]}
Nd7 {[%emt 0:00:59]} 12. g4 {[%emt 0:01:48]} Nxc3 {[%emt 0:00:59]} 13. Qxc3 {
[%emt 0:00:30]} Bxf3 {[%emt 0:00:16]} 14. Rg1 {[%emt 0:00:25]} Bxd1 {[%emt 0:
00:00]} 15. Kxd1 {[%emt 0:01:47]} e5 {[%emt 0:01:37]} 16. dxe5 {[%emt 0:03:16]}
dxe5 {[%emt 0:00:12]} 17. gxf5 {[%emt 0:00:26]} Nc5 {[%emt 0:02:36]} 18. Qxe5 {
[%emt 0:10:36]} Qxd3+ {[%emt 0:00:19]} 19. Kc1 {[%emt 0:00:37]} Qxc4+ {[%emt 0:
00:00]} 20. Kb1 {[%emt 0:03:39]} Qb3+ {[%emt 0:00:20]} 21. Ka1 {[%emt 0:01:15]}
Qxa3+ {[%emt 0:00:37]} 22. Kb1 {[%emt 0:00:21]} Qb3+ {[%emt 0:04:00]} 23. Ka1 {
[%emt 0:00:50]} Qa4+ {[%emt 0:01:53]} 24. Kb1 {[%emt 0:01:22]} Qe4+ {[%emt 0:
00:00]} 25. Ka1 {[%emt 0:03:09]} Qxe5+ {[%emt 0:00:20]} 26. Bxe5 {[%emt 0:00:
00]} Rf7 {[%emt 0:00:48]} 27. f6 {[%emt 0:04:07]} g6 {[%emt 0:00:29]} 28. h4 {
[%emt 0:00:19]} Nd7 {[%emt 0:01:20]} 29. Bxc7 {[%emt 0:01:47]} Nxf6 {[%emt 0:
00:00]} 30. Be5 {[%emt 0:00:16]} Re8 {[%emt 0:01:15]} 31. Bd4 {[%emt 0:00:26]}
Re4 {[%emt 0:02:46]} 32. f4 {[%emt 0:00:19]} Rxd4 {[%emt 0:01:24]} 33. exd4 {
[%emt 0:00:13]} Nd5 {[%emt 0:00:07]} 34. h5 {[%emt 0:02:38]} Kg7 {[%emt 0:00:
00]} 35. hxg6 {[%emt 0:00:54]} hxg6 {[%emt 0:00:07]} 36. Kb2 {[%emt 0:00:44]}
Rxf4 {[%emt 0:00:19]} 37. Rd1 {[%emt 0:00:10]} Rf3 {[%emt 0:01:08]} 0-1

[Event "44th Chess Olympiad Open 2022"]
[Site "Chennai"]
[Date "2022.07.30"]
[Round "2.84"]
[White "Escalante Ramirez, Brian Sebasti"]
[Black "Alharthi, Ahmed Mohammed A"]
[Result "0-1"]
[WhiteElo "2496"]
[BlackElo "1935"]
[Annotator "TA"]
[PlyCount "148"]
[EventDate "2022.??.??"]
[TimeControl "60"]

{[%evp 14,148,9,14,50,33,37,10,37,50,54,31,22,22,34,31,33,6,43,0,25,25,16,26,
31,29,28,23,39,0,0,2,1,-10,8,0,69,75,88,-93,-79,-167,4,4,5,6,7,0,0,0,0,-19,-21,
-20,-22,-106,-55,-60,-39,-137,-49,-48,-14,-15,-21,-27,-34,-40,-18,-20,-19,-47,
0,-12,0,0,0,-12,-12,-12,-4,-4,0,-4,-4,-4,-4,-4,-10,-101,-4,-11,-4,-11,-11,-177,
-184,-177,-184,-710,-1377,-1181,-1117,-1066,-523,-12843,-12843,-12846,-12847,
-12847,-12847,-12848,-12848,-12850,-27999,-27999,-27999,-27999,-27999,-27999,
-27999,-27999,-27999,-27999,-27999,-27999,-27999,-27999,-27999,-27999,-27999,
-27999,-27999,-27999,-27999,-27999,-27999]} 1. c4 {[%emt 0:00:09]} Nf6 {
[%emt 0:00:25]} 2. Nc3 {[%emt 0:00:09]} g6 {[%emt 0:00:18]} 3. g3 {[%emt 0:00:
00]} Bg7 {[%emt 0:00:14]} 4. Bg2 {[%emt 0:00:45]} O-O {[%emt 0:00:22]} 5. e3 {
[%emt 0:00:47]} d6 {[%emt 0:00:41]} 6. Nge2 {[%emt 0:00:43]} Nc6 {[%emt 0:00:
00]} 7. O-O {[%emt 0:03:15]} e5 {[%emt 0:03:55]} 8. b3 {[%emt 0:01:14]} Nh5 {
[%emt 0:02:22] A25: English Opening vs King's Indian with ...Nc6 but without
early d3.} 9. Bb2 {[%emt 0:00:31]} f5 {[%emt 0:01:08]} 10. Nd5 {[%emt 0:01:42]
Against f4} Be6 {[%emt 0:06:19] The position is equal.} 11. d4 {[%emt 0:01:05]
[#]} Qd7 $146 {[%emt 0:08:34]} ({Predecessor:} 11... e4 12. Ndc3 Nb4 13. Rb1
Nd3 14. Ba1 Qg5 15. Nc1 Nxc1 16. Rxc1 Rae8 17. Rc2 Bc8 {1-0 (31) Sega,C (2323)
-Reeves,N (1709) Dos Hermanas 2004}) 12. Rc1 {[%emt 0:03:24]} e4 {[%emt 0:00:
00]} 13. Nef4 {[%emt 0:01:44]} Nxf4 {[%emt 0:00:17]} 14. Nxf4 {[%emt 0:00:03]}
Bf7 {[%emt 0:00:16]} 15. Qd2 {[%emt 0:00:49]} a5 {[%emt 0:02:14]} 16. a3 {
[%emt 0:01:40]} h6 {[%emt 0:04:13]} 17. f3 {[%emt 0:12:58]} g5 {[%emt 0:15:42]}
18. Nd5 {[%emt 0:03:48]} exf3 {[%emt 0:01:12]} 19. Bxf3 {[%emt 0:00:40]} Ne7 {
[%emt 0:03:22]} 20. Nxe7+ {[%emt 0:01:23]} Qxe7 {[%emt 0:00:12]} 21. Qd3 {
[%emt 0:02:40]} c6 {[%emt 0:03:34]} 22. Rce1 {[%emt 0:00:50]} Bg6 {[%emt 0:00:
00]} 23. Re2 {[%emt 0:09:00]} Rae8 {[%emt 0:03:27]} 24. Rfe1 {[%emt 0:02:27]}
Qf6 {[%emt 0:05:05]} ({Better is} 24... Qf7 $11 25. Qc3 Bh5) 25. d5 $14 {
[%emt 0:07:03]} f4 {[%emt 0:04:37]} 26. Bxf6 $2 {[%emt 0:05:40]} (26. Qd1 $16 {
is necessary to keep the advantage.} Qd8 27. Bxg7 (27. dxc6 Bxb2 28. Rxb2 bxc6
$16) 27... Kxg7 28. exf4) 26... Bxd3 $17 {[%emt 0:00:09]} 27. Bxg7 {[%emt 0:00:
00]} (27. Rd2 $17 {was the only chance.} Rxf6 28. Rxd3 fxg3 29. Bh5 gxh2+ 30.
Kxh2) 27... Bxe2 $2 {[%emt 0:02:49]} (27... Kxg7 $19 28. Rd2 Rxe3) 28. Bxf8 $11
{[%emt 0:00:54]} Bxf3 {[%emt 0:00:44]} 29. Bxh6 {[%emt 0:05:02]} fxg3 {[%emt 0:
00:00]} 30. hxg3 {[%emt 0:03:36]} cxd5 {[%emt 0:00:21]} 31. cxd5 $16 {[%emt 0:
00:00] Endgame KRB-KRB} Re5 {[%emt 0:02:01]} 32. Kf2 {[%emt 0:02:25]} Bxd5 {
[%emt 0:00:50]} 33. e4 {[%emt 0:01:57]} Bxb3 {[%emt 0:03:21]} 34. Kf3 {[%emt 0:
04:23]} (34. Rc1 $1 $11 {remains equal.}) 34... Kh7 {[%emt 0:01:30]} (34... Kf7
$17 35. Rb1 a4) 35. Bf8 $15 {[%emt 0:01:58]} Re6 {[%emt 0:01:09]} 36. Kg4 {
[%emt 0:03:02]} (36. Rh1+ $1 $15 Kg8 37. Bh6) 36... Kg8 {[%emt 0:00:30]} (36...
Kg6 $1 $17 {Hoping for ...Rf6.} 37. Rb1 Bc4 38. Rxb7 Rxe4+ 39. Kh3 g4+ 40. Kh4
Re1 41. Rg7+ Kf6) 37. Rf1 {[%emt 0:00:18] Prevents Rf6.} Rxe4+ {[%emt 0:04:08]}
38. Kxg5 {[%emt 0:00:03]} Re5+ {[%emt 0:00:25]} 39. Kh4 {[%emt 0:01:36]} Re6 {
[%emt 0:03:58]} 40. g4 {[%emt 0:02:21]} Bc4 {[%emt 0:00:00]} 41. Rf4 {[%emt 0:
30:42]} b5 {[%emt 0:30:52]} 42. g5 {[%emt 0:04:19]} d5 {[%emt 0:01:03][%cal
Yd5d4]} 43. Bc5 {[%emt 0:00:49]} Re2 {[%emt 0:00:00]} 44. Rf8+ {[%emt 0:00:00]}
Kg7 {[%emt 0:00:00][%cal Yd5d4] aiming for ...d4!} 45. Ra8 {[%emt 0:00:00]}
Re4+ {[%emt 0:00:00]} 46. Kg3 {[%emt 0:00:00]} d4 {[%emt 0:00:00]} 47. Rxa5 {
[%emt 0:00:00]} d3 {[%emt 0:00:00]} 48. Ra7+ {[%emt 0:00:00]} Kg6 {[%emt 0:00:
00]} 49. Rd7 {[%emt 0:00:00]} Kxg5 {[%emt 0:00:00]} 50. Bb4 {[%emt 0:00:00]}
Kf5 {[%emt 0:00:00]} 51. Kf3 {[%emt 0:00:00] Against Re3+} (51. Bc3 $11 {
keeps the balance.}) 51... Re2 {[%emt 0:00:00]} (51... Re5 $1 $17 {Strongly
threatening ...Bd5+.} 52. Bd2 Bd5+ 53. Kg3 Re2 $1) 52. Rd8 $11 {[%emt 0:00:00]
Inhibits Bd5+.} Re6 {[%emt 0:00:00]} 53. Rd4 {[%emt 0:00:00]} Re5 {[%emt 0:00:
00]} 54. Rd8 {[%emt 0:00:00] This costs White the game.} (54. Rf4+ $11 Ke6 55.
Rd4) 54... Bd5+ $19 {[%emt 0:00:00]} 55. Kf2 {[%emt 0:00:00]} Re2+ {[%emt 0:00:
00]} 56. Kf1 $2 {[%emt 0:00:00]} (56. Kg3 Be4 57. Rf8+ Ke5 58. Bc3+ Kd5 59. Re8
) 56... Bc4 {[%emt 0:00:00] Threatens to win with ...d2.} 57. Kg1 {[%emt 0:00:
00]} Ke4 {[%emt 0:00:00]} 58. Rd7 {[%emt 0:00:00]} Bd5 {[%emt 0:00:00]} (58...
Ra2 $142 {And now ...Bd5 would win.} 59. Rd8 Ke3 60. Re8+ Kf3 61. Rf8+ Kg3 62.
Be1+ Kg4) 59. Re7+ {[%emt 0:00:00] [#]} Kf3 $1 {[%emt 0:00:00]} 60. Rd7 {
[%emt 0:00:00]} d2 {[%emt 0:00:00]} 61. Rxd5 {[%emt 0:00:00] KRB-KR} Re1+ $1 {
[%emt 0:00:00]} 62. Kh2 {[%emt 0:00:00]} d1=Q {[%emt 0:00:00] ( -> ...Rh1#)}
63. Rxd1 {[%emt 0:00:00]} Rxd1 {[%emt 0:00:00] KR-KB} 64. Be7 {[%emt 0:00:00]
Black mates.} Rf1 {[%emt 0:00:00]} 65. Bc5 {[%emt 0:00:00]} Ke4 {[%emt 0:00:00]
} 66. Kg2 {[%emt 0:00:00]} Rf7 {[%emt 0:00:00]} 67. Bd6 {[%emt 0:00:00]} Kd4 {
[%emt 0:00:00]} 68. Bb4 {[%emt 0:00:00]} Kc4 {[%emt 0:00:00]} 69. Bd6 {[%emt 0:
00:00]} Kb3 {[%emt 0:00:00]} 70. Bc5 {[%emt 0:00:00]} Rc7 {[%emt 0:00:10]} 71.
Bd6 {[%emt 0:00:00]} Ra7 {[%emt 0:00:00]} 72. Kf2 {[%emt 0:00:00]} Rxa3 {
[%emt 0:00:15]} 73. Bxa3 {[%emt 0:00:00]} Kxa3 {[%emt 0:00:07]} 74. Ke2 {
[%emt 0:00:00]} Ka2 {[%emt 0:00:12] Weighted Error Value: White=0.52/Black=0.
24 (precise)} 0-1

[Event "44th Chess Olympiad Open 2022"]
[Site "Chennai"]
[Date "2022.07.30"]
[Round "2.84"]
[White "Al Mutairi, Abdullah F"]
[Black "Enemchukwu Chinedu Benjamin"]
[Result "0-1"]
[WhiteElo "1916"]
[BlackElo "1889"]
[Annotator "NA RC"]
[PlyCount "174"]
[EventDate "2022.??.??"]
[TimeControl "60"]

1. d4 {[%emt 0:00:13]} c5 {[%emt 0:00:15]} 2. dxc5 {[%emt 0:00:13]} e6 {
[%emt 0:00:14]} 3. b4 {[%emt 0:01:24]} a5 {[%emt 0:00:34]} 4. Nc3 {[%emt 0:00:
00]} axb4 {[%emt 0:00:51]} 5. Ne4 {[%emt 0:00:21]} Nf6 {[%emt 0:02:43]} 6. Bg5
{[%emt 0:01:32]} Be7 {[%emt 0:01:43]} 7. Nd6+ {[%emt 0:00:25]} Bxd6 {[%emt 0:
00:00]} 8. cxd6 {[%emt 0:00:14]} Ra5 {[%emt 0:03:01]} 9. Nf3 {[%emt 0:03:13]}
Rd5 {[%emt 0:07:55]} 10. Qc1 {[%emt 0:06:11]} Nc6 {[%emt 0:00:51]} 11. e4 {
[%emt 0:00:38]} Ra5 {[%emt 0:02:31]} 12. Bd3 {[%emt 0:00:49]} h6 {[%emt 0:00:
00]} 13. Bh4 {[%emt 0:00:30]} e5 {[%emt 0:04:19]} 14. O-O {[%emt 0:01:55]} O-O
{[%emt 0:03:17]} 15. Re1 {[%emt 0:00:32]} Re8 {[%emt 0:01:17]} 16. Bc4 {
[%emt 0:00:35]} b6 {[%emt 0:04:46]} 17. Qd2 {[%emt 0:01:37]} Bb7 {[%emt 0:00:
00]} 18. Rad1 {[%emt 0:00:39]} Rc5 {[%emt 0:05:55]} 19. Bb3 {[%emt 0:00:26]}
Ba6 {[%emt 0:01:28]} 20. h3 {[%emt 0:02:49]} Bc4 {[%emt 0:02:05]} 21. g4 {
[%emt 0:01:12]} Bxb3 {[%emt 0:02:30]} 22. axb3 {[%emt 0:00:15]} Rc3 {[%emt 0:
00:00]} 23. Re3 {[%emt 0:00:21]} g5 {[%emt 0:08:04]} 24. Rxc3 {[%emt 0:12:51]}
Nxe4 {[%emt 0:01:34]} 25. Qe3 {[%emt 0:00:01]} Nxc3 {[%emt 0:00:37]} 26. Rd2 {
[%emt 0:02:18]} gxh4 {[%emt 0:04:35]} 27. Qxh6 {[%emt 0:00:53]} Re6 {[%emt 0:
00:00]} 28. Qh5 {[%emt 0:01:39]} Qf6 {[%emt 0:01:00]} 29. Ng5 {[%emt 0:01:57]}
Qg6 {[%emt 0:01:29]} 30. Qxh4 {[%emt 0:01:52]} Qh6 {[%emt 0:01:24]} 31. Nf3 {
[%emt 0:01:30]} Qxh4 {[%emt 0:01:55]} 32. Nxh4 {[%emt 0:00:02]} Ne4 {[%emt 0:
00:00]} 33. Rd5 {[%emt 0:00:49]} Nxd6 {[%emt 0:02:59]} 34. Ng2 {[%emt 0:00:45]}
Nd4 {[%emt 0:02:22]} 35. Ne3 {[%emt 0:00:20]} Kf8 {[%emt 0:01:35]} 36. h4 {
[%emt 0:01:21]} Nf3+ {[%emt 0:00:32]} 37. Kg2 {[%emt 0:00:54]} Nxh4+ {[%emt 0:
00:00]} 38. Kg3 {[%emt 0:00:16]} Ng6 {[%emt 0:00:17]} 39. f3 {[%emt 0:00:27]}
Nf4 {[%emt 0:01:46]} 40. Rd1 {[%emt 0:00:28]} Ke7 {[%emt 0:03:01]} 41. Ra1 {
[%emt 0:30:24]} Ne2+ {[%emt 0:33:58]} 42. Kf2 {[%emt 0:00:04]} Nc3 {[%emt 0:00:
00]} 43. Ra8 {[%emt 0:00:27]} Rg6 {[%emt 0:01:19]} 44. Rb8 {[%emt 0:01:20]} b5
{[%emt 0:01:40]} 45. Ke1 {[%emt 0:00:28]} f5 {[%emt 0:00:49]} 46. Rh8 {[%emt 0:
00:00]} fxg4 {[%emt 0:00:32]} 47. Nxg4 {[%emt 0:00:54]} Ke6 {[%emt 0:01:27]}
48. Rh5 {[%emt 0:01:33]} Nf5 {[%emt 0:03:03]} 49. Rh8 {[%emt 0:00:22]} e4 {
[%emt 0:00:59]} 50. Re8+ {[%emt 0:02:02]} Kf7 {[%emt 0:00:28]} 51. Re5 {
[%emt 0:00:12]} Nd6 {[%emt 0:01:26]} 52. Rh5 {[%emt 0:01:19]} Rg7 {[%emt 0:00:
00]} 53. Ne5+ {[%emt 0:00:25]} Ke6 {[%emt 0:00:16]} 54. fxe4 {[%emt 0:02:18]}
Ndxe4 {[%emt 0:00:20]} 55. Nf3 {[%emt 0:00:30]} d5 {[%emt 0:05:11]} 56. Nd4+ {
[%emt 0:00:26]} Kd7 {[%emt 0:00:12]} 57. Rh1 {[%emt 0:01:12]} Re7 {[%emt 0:00:
00]} 58. Rh8 {[%emt 0:00:52]} Nd6+ {[%emt 0:01:09]} 59. Kd2 {[%emt 0:00:48]}
Rg7 {[%emt 0:00:36]} 60. Ke3 {[%emt 0:02:18]} Rg3+ {[%emt 0:02:18]} 61. Kf4 {
[%emt 0:00:42]} Rg2 {[%emt 0:00:45]} 62. Rh7+ {[%emt 0:00:26]} Kc8 {[%emt 0:00:
00]} 63. Ke5 {[%emt 0:00:00]} Ne8 {[%emt 0:00:00]} 64. Nc6 {[%emt 0:00:00]} Rg7
{[%emt 0:00:00]} 65. Rh8 {[%emt 0:00:00]} Kd7 {[%emt 0:00:00]} 66. Nxb4 {
[%emt 0:00:00]} Nc7 {[%emt 0:00:00]} 67. Kd4 {[%emt 0:00:00]} Ne2+ {[%emt 0:00:
00]} 68. Kc5 {[%emt 0:00:00]} Nf4 {[%emt 0:00:00]} 69. Kb6 {[%emt 0:00:00]}
Rg6+ {[%emt 0:00:00]} 70. Kb7 {[%emt 0:00:00]} Nfe6 {[%emt 0:00:00]} 71. Rh7+ {
[%emt 0:00:00]} Kd6 {[%emt 0:00:00]} 72. Kb6 {[%emt 0:00:00]} Ke5 {[%emt 0:00:
00]} 73. Rh5+ {[%emt 0:00:00]} Kd4 {[%emt 0:00:00]} 74. Rh4+ {[%emt 0:00:00]}
Kc3 {[%emt 0:00:00]} 75. Kc6 {[%emt 0:01:20]} d4 {[%emt 0:00:00]} 76. Nd3 {
[%emt 0:03:21]} Kxc2 {[%emt 0:00:00]} 77. Ne5 {[%emt 0:00:16]} Rg5 {[%emt 0:00:
00]} 78. Kd6 {[%emt 0:01:04]} Kxb3 {[%emt 0:00:00]} 79. Rh3+ {[%emt 0:00:18]}
Ka4 {[%emt 0:00:00]} 80. Rd3 {[%emt 0:00:18]} Rxe5 {[%emt 0:00:00]} 81. Kxe5 {
[%emt 0:00:19]} b4 {[%emt 0:00:00]} 82. Rd1 {[%emt 0:00:40]} b3 {[%emt 0:00:00]
} 83. Ke4 {[%emt 0:00:10]} b2 {[%emt 0:00:00]} 84. Kd3 {[%emt 0:00:39]} Kb3 {
[%emt 0:00:00]} 85. Rh1 {[%emt 0:00:27]} Na6 {[%emt 0:00:00]} 86. Kd2 {[%emt 0:
00:00]} Nec5 {[%emt 0:00:00]} 87. Rb1 {[%emt 0:00:45]} Ka2 {[%emt 0:00:00]} 0-1

[Event "44th Chess Olympiad Open 2022"]
[Site "Chennai"]
[Date "2022.07.30"]
[Round "2.85"]
[White "Amini, Habibullah"]
[Black "Bridet, Robert"]
[Result "1-0"]
[WhiteElo "2035"]
[BlackElo "1497"]
[Annotator "NA RC"]
[PlyCount "53"]
[EventDate "2022.??.??"]
[TimeControl "60"]

1. d4 {[%emt 0:00:03]} e6 {[%emt 0:00:23]} 2. Bf4 {[%emt 0:00:12]} Nf6 {
[%emt 0:00:30]} 3. e3 {[%emt 0:00:28]} Be7 {[%emt 0:00:16]} 4. c3 {[%emt 0:00:
00]} d5 {[%emt 0:01:00]} 5. Nd2 {[%emt 0:00:20]} O-O {[%emt 0:01:01]} 6. Ngf3 {
[%emt 0:00:04]} Nbd7 {[%emt 0:00:51]} 7. Bd3 {[%emt 0:01:24]} c5 {[%emt 0:00:
00]} 8. Ne5 {[%emt 0:00:13]} c4 {[%emt 0:01:41]} 9. Bc2 {[%emt 0:00:03]} Nxe5 {
[%emt 0:01:54]} 10. dxe5 {[%emt 0:00:04]} Nd7 {[%emt 0:00:28]} 11. h4 {[%emt 0:
00:00]} f5 {[%emt 0:00:26]} 12. exf6 {[%emt 0:01:20]} Nxf6 {[%emt 0:01:53]} 13.
Be5 {[%emt 0:04:11]} Qe8 {[%emt 0:04:34]} 14. h5 {[%emt 0:00:48]} Qf7 {[%emt 0:
00:00]} 15. f4 {[%emt 0:00:35]} b5 {[%emt 0:01:20]} 16. g4 {[%emt 0:02:08]} Bb7
{[%emt 0:00:36]} 17. g5 {[%emt 0:00:21]} Ne4 {[%emt 0:07:14]} 18. Nxe4 {
[%emt 0:00:50]} dxe4 {[%emt 0:00:34]} 19. Qg4 {[%emt 0:02:02]} Qf5 {[%emt 0:00:
00]} 20. Qg3 {[%emt 0:00:02]} Rad8 {[%emt 0:13:48]} 21. Bd1 {[%emt 0:02:50]}
Bc5 {[%emt 0:07:03]} 22. Bg4 {[%emt 0:00:15]} Qf7 {[%emt 0:00:24]} 23. g6 {
[%emt 0:00:38]} Qe7 {[%emt 0:01:18]} 24. Bxe6+ {[%emt 0:01:02]} Kh8 {[%emt 0:
00:00]} 25. h6 {[%emt 0:01:28]} Rf6 {[%emt 0:02:26]} 26. hxg7+ {[%emt 0:00:29]}
Qxg7 {[%emt 0:03:44]} 27. Bxf6 {[%emt 0:00:45]} 1-0

[Event "44th Chess Olympiad Open 2022"]
[Site "Chennai"]
[Date "2022.07.30"]
[Round "2.85"]
[White "Sulaiman, Ahmad Ashrafi"]
[Black "Thomas, Larry"]
[Result "1-0"]
[WhiteElo "1953"]
[BlackElo "1317"]
[Annotator "NA"]
[PlyCount "95"]
[EventDate "2022.??.??"]
[TimeControl "60"]

1. d4 {[%emt 0:00:04]} Nf6 {[%emt 0:00:10]} 2. Nf3 {[%emt 0:00:38]} g6 {
[%emt 0:00:43]} 3. Bf4 {[%emt 0:00:12]} d5 {[%emt 0:01:42]} 4. e3 {[%emt 0:00:
00]} Bg7 {[%emt 0:01:24]} 5. h3 {[%emt 0:00:23]} a6 {[%emt 0:05:30]} 6. a4 {
[%emt 0:03:36]} O-O {[%emt 0:01:17]} 7. Nbd2 {[%emt 0:00:02]} c6 {[%emt 0:00:
00]} 8. c3 {[%emt 0:03:27]} Re8 {[%emt 0:01:18]} 9. Be2 {[%emt 0:00:31]} Nfd7 {
[%emt 0:01:53]} 10. O-O {[%emt 0:00:56]} e5 {[%emt 0:01:00]} 11. dxe5 {[%emt 0:
00:00]} Nxe5 {[%emt 0:00:38]} 12. Nxe5 {[%emt 0:00:51]} Bxe5 {[%emt 0:00:16]}
13. Bxe5 {[%emt 0:00:06]} Rxe5 {[%emt 0:00:10]} 14. Nf3 {[%emt 0:00:19]} Re8 {
[%emt 0:00:26]} 15. a5 {[%emt 0:00:19]} Nd7 {[%emt 0:00:34]} 16. c4 {[%emt 0:
00:00]} Ne5 {[%emt 0:04:43]} 17. cxd5 {[%emt 0:02:12]} Qxd5 {[%emt 0:01:33]}
18. Qxd5 {[%emt 0:00:14]} cxd5 {[%emt 0:00:22]} 19. Rfd1 {[%emt 0:00:25]} Nc6 {
[%emt 0:05:05]} 20. Rxd5 {[%emt 0:01:20]} Be6 {[%emt 0:00:26]} 21. Rc5 {
[%emt 0:00:39]} Red8 {[%emt 0:05:35]} 22. Rac1 {[%emt 0:01:18]} Rd5 {[%emt 0:
00:00]} 23. Rxd5 {[%emt 0:00:56]} Bxd5 {[%emt 0:00:20]} 24. Rc5 {[%emt 0:00:32]
} Ne7 {[%emt 0:06:13]} 25. Nd4 {[%emt 0:00:32]} Rc8 {[%emt 0:01:07]} 26. Rxc8+
{[%emt 0:00:16]} Nxc8 {[%emt 0:00:10]} 27. f3 {[%emt 0:00:50]} Nd6 {[%emt 0:00:
00]} 28. e4 {[%emt 0:00:41]} Bc4 {[%emt 0:01:05]} 29. Kf2 {[%emt 0:00:14]} Kf8
{[%emt 0:06:33]} 30. b4 {[%emt 0:02:08]} Ke8 {[%emt 0:07:16]} 31. e5 {[%emt 0:
00:00]} Bxe2 {[%emt 0:00:53]} 32. Kxe2 {[%emt 0:00:08]} Nc8 {[%emt 0:04:02]}
33. Kd3 {[%emt 0:01:47]} Kd7 {[%emt 0:03:50]} 34. f4 {[%emt 0:00:54]} Ne7 {
[%emt 0:04:06]} 35. Kc4 {[%emt 0:00:31]} Kc7 {[%emt 0:15:56]} 36. Kc5 {[%emt 0:
00:00]} Nc8 {[%emt 0:04:03]} 37. g4 {[%emt 0:00:54]} h6 {[%emt 0:02:15]} 38. b5
{[%emt 0:02:07]} axb5 {[%emt 0:01:49]} 39. Nxb5+ {[%emt 0:00:30]} Kd7 {[%emt 0:
00:00]} 40. Nd6 {[%emt 0:00:33]} Nxd6 {[%emt 0:02:20]} 41. exd6 {[%emt 0:30:18]
} f6 {[%emt 0:07:17]} 42. f5 {[%emt 0:00:00]} g5 {[%emt 0:03:03]} 43. Kd5 {
[%emt 0:00:00]} Kd8 {[%emt 0:01:30]} 44. Ke6 {[%emt 0:00:00]} Ke8 {[%emt 0:00:
00]} 45. d7+ {[%emt 0:00:00]} Kd8 {[%emt 0:00:21]} 46. Kd6 {[%emt 0:00:00]} h5
{[%emt 0:00:41]} 47. gxh5 {[%emt 0:00:00]} g4 {[%emt 0:00:23]} 48. h6 {[%emt 0:
00:00]} 1-0

[Event "44th Chess Olympiad Open 2022"]
[Site "Chennai"]
[Date "2022.07.30"]
[Round "2.86"]
[White "Yan, Austin K"]
[Black "Christopher, Art"]
[Result "1-0"]
[WhiteElo "1568"]
[BlackElo "1616"]
[Annotator "NA"]
[PlyCount "77"]
[EventDate "2022.??.??"]
[TimeControl "60"]

1. e4 {[%emt 0:00:15]} e5 {[%emt 0:00:28]} 2. Nf3 {[%emt 0:00:07]} Nf6 {
[%emt 0:00:20]} 3. Nc3 {[%emt 0:01:40]} d6 {[%emt 0:02:09]} 4. d4 {[%emt 0:00:
00]} exd4 {[%emt 0:02:10]} 5. Nxd4 {[%emt 0:00:25]} Be7 {[%emt 0:02:05]} 6. Be2
{[%emt 0:03:48]} O-O {[%emt 0:00:39]} 7. Be3 {[%emt 0:01:13]} Nc6 {[%emt 0:00:
00]} 8. f3 {[%emt 0:01:51]} a6 {[%emt 0:01:09]} 9. Qd2 {[%emt 0:01:23]} Nxd4 {
[%emt 0:05:40]} 10. Bxd4 {[%emt 0:03:05]} c5 {[%emt 0:06:07]} 11. Be3 {[%emt 0:
00:00]} b5 {[%emt 0:04:32]} 12. O-O {[%emt 0:04:39]} Qc7 {[%emt 0:02:11]} 13.
Rfd1 {[%emt 0:11:18]} Bb7 {[%emt 0:03:56]} 14. Nd5 {[%emt 0:02:59]} Bxd5 {
[%emt 0:01:54]} 15. exd5 {[%emt 0:00:02]} Nd7 {[%emt 0:13:03]} 16. a4 {[%emt 0:
00:00]} b4 {[%emt 0:08:30]} 17. a5 {[%emt 0:01:46]} Bf6 {[%emt 0:08:56]} 18. c3
{[%emt 0:00:49]} bxc3 {[%emt 0:00:27]} 19. bxc3 {[%emt 0:00:02]} Rfe8 {[%emt 0:
00:00]} 20. Bf1 {[%emt 0:00:55]} Ne5 {[%emt 0:03:12]} 21. Bg5 {[%emt 0:03:51]}
Bxg5 {[%emt 0:07:17]} 22. Qxg5 {[%emt 0:01:17]} h6 {[%emt 0:00:09]} 23. Qg3 {
[%emt 0:03:59]} c4 {[%emt 0:01:48]} 24. Rd4 {[%emt 0:05:22]} Qc5 {[%emt 0:00:
00]} 25. h4 {[%emt 0:00:46]} Rab8 {[%emt 0:01:43]} 26. Kh2 {[%emt 0:02:33]} Rb3
{[%emt 0:01:39]} 27. f4 {[%emt 0:01:33]} Qxd4 {[%emt 0:00:20]} 28. cxd4 {
[%emt 0:00:40]} Rxg3 {[%emt 0:00:07]} 29. Kxg3 {[%emt 0:00:02]} Nd3 {[%emt 0:
00:00]} 30. Kf3 {[%emt 0:02:24]} f5 {[%emt 0:03:55]} 31. Rd1 {[%emt 0:04:01]}
Nb2 {[%emt 0:03:30]} 32. Rb1 {[%emt 0:06:33]} c3 {[%emt 0:04:26]} 33. Rc1 {
[%emt 0:01:43]} Re4 {[%emt 0:03:01]} 34. Rxc3 {[%emt 0:04:45]} Rxd4 {[%emt 0:
00:00]} 35. Rb3 {[%emt 0:01:18]} Na4 {[%emt 0:01:16]} 36. Bxa6 {[%emt 0:00:38]}
Rxd5 {[%emt 0:00:40]} 37. Bc4 {[%emt 0:00:06]} Nc5 {[%emt 0:03:12]} 38. Bxd5+ {
[%emt 0:00:06]} Kh7 {[%emt 0:00:03]} 39. Rb6 {[%emt 0:00:12]} 1-0

[Event "44th Chess Olympiad Open 2022"]
[Site "Chennai"]
[Date "2022.07.30"]
[Round "2.87"]
[White "Senglek, Khonsavanh"]
[Black "Ali Abdullahi, Farah"]
[Result "0-1"]
[WhiteElo "1253"]
[BlackElo "1892"]
[Annotator "NA RC"]
[PlyCount "60"]
[EventDate "2022.??.??"]
[TimeControl "60"]

1. e4 {[%emt 0:00:05]} b6 {[%emt 0:00:02]} 2. d4 {[%emt 0:00:23]} Bb7 {[%emt 0:
00:00]} 3. Nc3 {[%emt 0:00:57]} e6 {[%emt 0:00:02]} 4. a3 {[%emt 0:00:27]} Nf6
{[%emt 0:00:30]} 5. Bd3 {[%emt 0:00:38]} c5 {[%emt 0:02:04]} 6. d5 {[%emt 0:00:
00]} exd5 {[%emt 0:00:15]} 7. exd5 {[%emt 0:00:13]} d6 {[%emt 0:03:51]} 8. Bg5
{[%emt 0:01:01]} Be7 {[%emt 0:00:02]} 9. Nf3 {[%emt 0:00:26]} h6 {[%emt 0:00:
00]} 10. Be3 {[%emt 0:01:27]} O-O {[%emt 0:00:24]} 11. Qd2 {[%emt 0:00:06]} Ng4
{[%emt 0:04:18]} 12. Bf4 {[%emt 0:00:45]} Nd7 {[%emt 0:01:29]} 13. Ne4 {
[%emt 0:03:20]} Nde5 {[%emt 0:01:48]} 14. c4 {[%emt 0:01:36]} f5 {[%emt 0:00:
00]} 15. Ng3 {[%emt 0:01:07]} Bc8 {[%emt 0:03:48]} 16. h3 {[%emt 0:02:48]}
Nxf3+ {[%emt 0:02:28]} 17. gxf3 {[%emt 0:00:25]} Ne5 {[%emt 0:00:01]} 18. Bxe5
{[%emt 0:02:39]} dxe5 {[%emt 0:00:02]} 19. Rg1 {[%emt 0:02:18]} Qe8 {[%emt 0:
00:00]} 20. Bc2 {[%emt 0:04:19]} Bh4 {[%emt 0:03:17]} 21. Qd3 {[%emt 0:05:43]}
Bg5 {[%emt 0:05:28]} 22. d6 {[%emt 0:07:35]} Be6 {[%emt 0:00:49]} 23. Rh1 {
[%emt 0:04:55]} Qf7 {[%emt 0:02:19]} 24. b3 {[%emt 0:07:04]} b5 {[%emt 0:02:39]
} 25. cxb5 {[%emt 0:04:21]} c4 {[%emt 0:01:20]} 26. bxc4 {[%emt 0:00:53]} e4 {
[%emt 0:00:20]} 27. fxe4 {[%emt 0:04:18]} Bxc4 {[%emt 0:00:31]} 28. Qf3 {
[%emt 0:00:24]} Qe6 {[%emt 0:02:12]} 29. Rb1 {[%emt 0:08:44]} Qxd6 {[%emt 0:00:
00]} 30. Rd1 {[%emt 0:03:39]} Qb6 {[%emt 0:00:23]} 0-1